{"text_format":"3","workbook":"xlsx","n_sheets":4,"sheets":["общий исскусство","9кл.","10 кл.","11кл."],"read":"whole","date_system":"1900"}

{"sheet":"общий исскусство","index":0,"n_rows":221,"n_cols":19,"rows_kept":221}
["№","Название ОУ","Пол","Класс","Класс участия","Задание 1 ","Задание 2","Задание 3","Задание 4","Задание 5","Задание 6","Первичный балл","Добавлено по итогам аппеляций","Итоговый балл","Макс. балл","Статус","Призер регионального/республиканского этапа","Учитель","Место работы учителя"]
[1,"Мунициапльное автономное общеобразовательное учреждение города Набережные Челны \"Гимназия № 76\" Республики Татарстан","ж",7,7,18,17,26,12,11,33,{"$f":"SUM(F2:K2)","v":117},null,null,130,"победитель","нет","Морозова Лилия Петровна","Мунициапльное автономное общеобразовательное учреждение города Набережные Челны \"Гимназия № 76\" Республики Татарстан"]
[2,"Муниципальное бюджетное общеобразовательное учреждение \"Центр образования - Гимназия №57 \"Притяжение\" города Набережные Челны Республики Татарстан","ж",7,7,19,13,18,6,16,33,105,null,null,130,"призёр","нет","Шевченко Людмила Александровна","Муниципальное бюджетное общеобразовательное учреждение \"Центр образования - Гимназия №57 \"Притяжение\" города Набережные Челны Республики Татарстан"]
[3,"Муниципальное бюджетное общеобразовательное учреждение \"Гимназия № 26\" города Набережные Челны Республики Татарстан","м",8,8,17,10,14,12,18,30,101,null,null,130,"призёр","нет","Юдакова Мария Васильевна","Муниципальное бюджетное общеобразовательное учреждение \"Гимназия № 26\" города Набережные Челны Республики Татарстан"]
[4,"Муниципальное бюджетное общеобразовательное учреждение \"Гимназия № 26\" города Набережные Челны Республики Татарстан","ж",8,8,19,13,17,12,6,33,100,null,null,130,"призёр","нет","Юдакова Мария Васильевна","Муниципальное бюджетное общеобразовательное учреждение \"Гимназия № 26\" города Набережные Челны Республики Татарстан"]
[5,"Мунициапльное автономное общеобразовательное учреждение города Набережные Челны \"Гимназия № 76\" Республики Татарстан","ж",8,8,18,12,23,8,6,29,96,null,null,130,"призёр","нет","Чурбанова Ирина Анатольевна","Мунициапльное автономное общеобразовательное учреждение города Набережные Челны \"Гимназия № 76\" Республики Татарстан"]
[6,"Муниципальное автономное общеобразовательное учреждение \"Гимназия №61\" города Набережные Челны Республики Татарстан","ж",7,7,18,15,11,6,13,31,94,null,null,130,"призёр","нет","Юшачкова Виолетта Тагировна","Муниципальное автономное общеобразовательное учреждение \"Гимназия №61\" города Набережные Челны Республики Татарстан"]
[7,"Муниципальное автономное общеобразовательно учреждение \"Лицей № 78 им.А.С.Пушкина\" города Набережные Челны Республики Татарстан","ж",8,8,17,14,17,0,15,29,92,null,null,130,"призёр","нет","Галяутдинова Динара Халиловна","Муниципальное автономное общеобразовательно учреждение \"Лицей № 78 им.А.С.Пушкина\" города Набережные Челны Республики Татарстан"]
[8,"Муниципальное автономное общеобразовательное учреждение \"Средняя общеобразовтельная школа №35 с углубленным изучением отдельных предметов\" города Набережные Челны Республики Татарстан","ж",7,7,18,12,19,0,9,29,87,null,null,130,"призёр","нет","Ахметгалимова Ольга Николаевна","Муниципальное автономное общеобразовательное учреждение \"Средняя общеобразовтельная школа №35 с углубленным изучением отдельных предметов\" города Набережные Челны Республики Татарстан"]
[9,"Муниципальное автономное общеобразовательно учреждение \"Лицей № 78 им.А.С.Пушкина\" города Набережные Челны Республики Татарстан","ж",7,7,19,9,22,6,7,24,87,null,null,130,"призёр","нет","Габдрахманова Гульнара Минияновна","Муниципальное автономное общеобразовательно учреждение \"Лицей № 78 им.А.С.Пушкина\" города Набережные Челны Республики Татарстан"]
[10,"Муниципальное автономное общеобразовательно учреждение города Набережные Челны \"Лицей № 78 им.А.С.Пушкина\" Республики Татарстан","ж",8,8,19,12,17,2,4,33,87,null,null,130,"призёр","нет","Галяутдинова Динара Халиловна","Муниципальное автономное общеобразовательно учреждение города Набережные Челны \"Лицей № 78 им.А.С.Пушкина\" Республики Татарстан"]
[11,"Муниципальное автономное общеобразовательное учреждение \"Гимназия №77\" города Набережные Челны Республики Татарстан","м",8,8,18,14,7,10,6,32,87,null,null,130,"призёр","нет","Ахметшина Татьяна Ивановна","Муниципальное автономное общеобразовательное учреждение \"Гимназия №77\" города Набережные Челны Республики Татарстан"]
[12,"Муниципальное бюджетное общеобразовательное учреждение \"Средняя общеобразовательная школа № 41\" города Набережные Челны Республики Татарстан","ж",7,7,18,11,12,6,9,30,86,null,null,130,"призёр","нет","Савельева Наталья Николаевна","Муниципальное бюджетное общеобразовательное учреждение \"Средняя общеобразовательная школа № 41\" города Набережные Челны Республики Татарстан"]
[13,"Муниципальное бюджетное общеобразовательное учреждение \"Средняя общеобразовательная школа № 41\" города Набережные Челны Республики Татарстан","ж",8,8,17,10,17,6,10,25,85,null,null,130,"призёр","нет","Савельева Наталья Николаевна","Муниципальное бюджетное общеобразовательное учреждение \"Средняя общеобразовательная школа № 41\" города Набережные Челны Республики Татарстан"]
[14,"Муниципальное бюджетное общеобразовательное учреждение \"Гимназия № 26\" города Набережные Челны Республики Татарстан","ж",7,7,19,11,17,0,11,27,85,null,null,130,"призёр","нет","Юдакова Мария Васильевна","Муниципальное бюджетное общеобразовательное учреждение \"Гимназия № 26\" города Набережные Челны Республики Татарстан"]
[15,"Муниципальное автономное общеобразовательное учреждение \"Гимназия №77\" города Набережные Челны Республики Татарстан","ж",7,7,19,12,13,4,6,31,85,null,null,130,"призёр","нет","Ахметшина Татьяна Ивановна","Муниципальное автономное общеобразовательное учреждение \"Гимназия №77\" города Набережные Челны Республики Татарстан"]
[16,"Муниципальное автономное общеобразовательное учреждение города Набережные Челны \"Кадетская школа №49\" Республики Татарстан","ж",8,8,18,8,17,6,7,29,85,null,null,130,"призёр","нет","Селиванова Ирина Владимировна","Муниципальное автономное общеобразовательное учреждение города Набережные Челны \"Кадетская школа №49\" Республики Татарстан"]
[18,"Муниципальное бюджетное образовательное учреждение \"Средняя общеобразовательная школа №32 с углубленным изучением отдельных предметов» города Набережные Челны Республики Татарстан","ж",8,8,19,10,18,0,12,25,84,null,null,130,"призёр","нет","Числова Галина Нефедовна","Муниципальное бюджетное образовательное учреждение \"Средняя общеобразовательная школа №32 с углубленным изучением отдельных предметов» города Набережные Челны Республики Татарстан"]
[17,"Муниципальное бюджетное общеобразовательное учреждение «Лицей-интернат №79» города Набережные Челны Республики Татарстан","м",8,8,18,10,23,4,11,18,84,null,null,130,"призёр","нет","Шарифуллина Миляуша Зуфаровна,Габдрахманова Гульнара Минияновна","Муниципальное бюджетное общеобразовательное учреждение «Лицей-интернат №79» города Набережные Челны Республики Татарстан"]
[19,"Муниципальное автономное общеобразовательное учреждение \"Лицей инновационных технологий №36\" города Набережные Челны Республики Татарстан","ж",8,8,19,10,14,6,5,29,83,null,null,130,"призёр","нет","Валеева Ирина Аглямовна,Салихова Алёна Владимировна","Муниципальное автономное общеобразовательное учреждение \"Лицей инновационных технологий №36\" города Набережные Челны Республики Татарстан"]
[21,"Муниципальное бюджетное общеобразовательное учреждение \"Центр образования - Гимназия №57 \"Притяжение\" города Набережные Челны Республики Татарстан","ж",7,7,14,11,19,2,9,28,83,null,null,130,"призёр","нет","Шевченко Людмила Александровна","Муниципальное бюджетное общеобразовательное учреждение \"Центр образования - Гимназия №57 \"Притяжение\" города Набережные Челны Республики Татарстан"]
[20,"Муниципальное бюджетное общеобразовательное учреждение \"Средняя общеобразовательная школа №25\" города Набережные Челны Республики Татарстан","м",7,7,17,13,14,2,10,27,83,null,null,130,"призёр","нет","Файрушина Лейсан Владимировна","Муниципальное бюджетное общеобразовательное учреждение \"Средняя общеобразовательная школа №25\" города Набережные Челны Республики Татарстан"]
[22,"Муниципальное бюджетное общеобразовательное учреждение \"Средняя общеобразовательная школа №53\" города Набережные Челны Республики Татарстан","ж",8,8,19,8,12,12,7,24,82,null,null,130,"призёр","нет","Дурнева Ирина Геннадьевна, Дудникова","Муниципальное бюджетное общеобразовательное учреждение \"Средняя общеобразовательная школа №53\" города Набережные Челны Республики Татарстан"]
[23,"Муниципальное автономное общеобразовательное учреждение \"Гимназия №77\" города Набережные Челны Республики Татарстан","ж",8,8,16,14,14,10,5,23,82,null,null,130,"призёр","нет","Ахметшина Татьяна Ивановна","Муниципальное автономное общеобразовательное учреждение \"Гимназия №77\" города Набережные Челны Республики Татарстан"]
[24,"Муниципальное бюджетное общеобразовательное учреждение «Средняя общеобразовательная школа №8» города Набережные Челны Республики Татарстан","ж",8,8,17,13,17,0,5,29,81,null,null,130,null,"нет","Краснова Наталья Геннадьевна,Колесникова Татьяна Викторовна","Муниципальное бюджетное общеобразовательное учреждение «Средняя общеобразовательная школа №8» города Набережные Челны Республики Татарстан"]
[25,"Муниципальное бюджетное общеобразовательное учреждение \"Центр образования - Гимназия №57 \"Притяжение\" города Набережные Челны Республики Татарстан","ж",7,7,19,9,17,0,5,31,81,null,null,130,null,"нет","Шевченко Людмила Александровна","Муниципальное бюджетное общеобразовательное учреждение \"Центр образования - Гимназия №57 \"Притяжение\" города Набережные Челны Республики Татарстан"]
[26,"Муниципальное автономное общеобразовательное учреждение \"Гимназия №77\" города Набережные Челны Республики Татарстан","ж",7,7,19,12,12,2,9,27,81,null,null,130,null,"нет","Ахметшина Татьяна Ивановна","Муниципальное автономное общеобразовательное учреждение \"Гимназия №77\" города Набережные Челны Республики Татарстан"]
[27,"Мунициапльное автономное общеобразовательное учреждение города Набережные Челны \"Гимназия № 76\" Республики Татарстан","ж",7,7,18,11,17,4,6,25,81,null,null,130,null,"нет","Морозова Лилия Петровна","Мунициапльное автономное общеобразовательное учреждение города Набережные Челны \"Гимназия № 76\" Республики Татарстан"]
[28,"Муниципальное автономное общеобразовательно учреждение \"Лицей № 78 им.А.С.Пушкина\" города Набережные Челны Республики Татарстан","ж",7,7,18,13,17,0,5,28,81,null,null,130,null,"нет","Габдрахманова Гульнара Минияновна","Муниципальное автономное общеобразовательно учреждение \"Лицей № 78 им.А.С.Пушкина\" города Набережные Челны Республики Татарстан"]
[29,"Мунициапльное автономное общеобразовательное учреждение города Набережные Челны \"Гимназия № 76\" Республики Татарстан","ж",7,7,19,13,17,2,12,18,81,null,null,130,null,"нет","Морозова Лилия Петровна","Мунициапльное автономное общеобразовательное учреждение города Набережные Челны \"Гимназия № 76\" Республики Татарстан"]
[31,"Муниципальное автономное общеобразовательное учреждение \"Гимназия №61\" города Набережные Челны Республики Татарстан","ж",8,8,19,9,12,6,6,28,80,null,null,130,null,"нет","Алекбаева Кадрия Вафировна","Муниципальное автономное общеобразовательное учреждение \"Гимназия №61\" города Набережные Челны Республики Татарстан"]
[30,"Муниципальное бюджетное общеобразовательное учреждение \"Средняя общеобразовательная школа №45 с углубленным изучением отдельных предметов\" города Набережные Челны Республики Татарстан","м",8,8,16,6,16,6,8,28,80,null,null,130,null,"нет","Кульдюшева Раушания Габдулахатовна","Муниципальное бюджетное общеобразовательное учреждение \"Средняя общеобразовательная школа №45 с углубленным изучением отдельных предметов\" города Набережные Челны Республики Татарстан"]
[32,"Муниципальное бюджетное общеобразовательное учреждение \"Средняя общеобразовательная школа №5\" города Набережные Челны Республики Татарстан","ж",8,8,15,10,14,8,7,25,79,null,null,130,null,"нет","Хабибуллина Светлана Фаизовна","Муниципальное бюджетное общеобразовательное учреждение \"Средняя общеобразовательная школа №5\" города Набережные Челны Республики Татарстан"]
[33,"Муниципальное бюджетное общеобразовательное учреждение \"Гимназия № 26\" города Набережные Челны Республики Татарстан","ж",7,7,19,10,14,6,5,25,79,null,null,130,null,"нет","Юдакова Мария Васильевна","Муниципальное бюджетное общеобразовательное учреждение \"Гимназия № 26\" города Набережные Челны Республики Татарстан"]
[34,"Муниципальное бюджетное общеобразовательное учреждение \"Средняя общеобразовательная школа № 41\" города Набережные Челны Республики Татарстан","ж",8,8,16,11,12,2,9,28,78,null,null,130,null,"нет","Савельева Наталья Николаевна","Муниципальное бюджетное общеобразовательное учреждение \"Средняя общеобразовательная школа № 41\" города Набережные Челны Республики Татарстан"]
[35,"Муниципальное автономное общеобразовательное учреждение \"Лицей инновационных технологий №36\" города Набережные Челны Республики Татарстан","ж",7,7,15,8,14,2,8,30,77,null,null,130,null,"нет","Салихова Алёна Владимировна","Муниципальное автономное общеобразовательное учреждение \"Лицей инновационных технологий №36\" города Набережные Челны Республики Татарстан"]
[36,"Муниципальное бюджетное общеобразовательное учреждение \"Центр образования - Гимназия №57 \"Притяжение\" города Набережные Челны Республики Татарстан","ж",6,7,15,11,16,0,9,26,77,null,null,130,null,"нет","Шевченко Людмила Александровна","Муниципальное бюджетное общеобразовательное учреждение \"Центр образования - Гимназия №57 \"Притяжение\" города Набережные Челны Республики Татарстан"]
[37,"Муниципальное бюджетное общеобразовательное учреждение \"Средняя общеобразовательная школа №24 с углубленным изучением отдельных предметов\" города Набережные Челны Республики Татарстан","ж",8,8,17,10,14,6,5,25,77,null,null,130,null,"нет","Михайлова Марина Николаевна","Муниципальное бюджетное общеобразовательное учреждение \"Средняя общеобразовательная школа №24 с углубленным изучением отдельных предметов\" города Набережные Челны Республики Татарстан"]
[38,"Муниципальное бюджетное общеобразовательное учреждение \"Средняя общеобразовательная школа №6\"города Набережные Челны Республики Татарстан","ж",8,8,16,12,9,2,9,28,76,null,null,130,null,"нет","Запивахина Ирина Викторовна","Муниципальное бюджетное общеобразовательное учреждение \"Средняя общеобразовательная школа №6\"города Набережные Челны Республики Татарстан"]
[39,"Муниципальное бюджетное образовательное учреждение «Средняя общеобразовательная школа 28» города Набережные Челны Республики Татарстан","ж",8,8,16,12,12,0,4,32,76,null,null,130,null,"нет","Закирова Залия Рафаэловна","Муниципальное бюджетное образовательное учреждение «Средняя общеобразовательная школа 28» города Набережные Челны Республики Татарстан"]
[40,"Муниципальное автономное общеобразовательное учреждение \"Средняя общеобразовтельная школа №35 с углубленным изучением отдельных предметов\" города Набережные Челны Республики Татарстан","ж",7,7,18,10,20,0,6,22,76,null,null,130,null,"нет","Ахметгалимова Ольга Николаевна","Муниципальное автономное общеобразовательное учреждение \"Средняя общеобразовтельная школа №35 с углубленным изучением отдельных предметов\" города Набережные Челны Республики Татарстан"]
[41,"Муниципальное автономное общеобразовательное учреждение города Набережные Челны «Средняя общеобразовательная школа №56» Республики Татарстан","ж",8,8,16,8,19,0,5,28,76,null,null,130,null,"нет","Калимуллина Назия Ибрагимовна","Муниципальное автономное общеобразовательное учреждение города Набережные Челны «Средняя общеобразовательная школа №56» Республики Татарстан"]
[42,"Муниципальное бюджетное общеобразовательное учреждение \"Средняя общеобразовательная школа №33\" города Набережные Челны Республики Татарстан","ж",8,8,15,9,22,2,5,22,75,null,null,130,null,"нет","Гарифуллина Эльвира Флюровна","Муниципальное бюджетное общеобразовательное учреждение \"Средняя общеобразовательная школа №33\" города Набережные Челны Республики Татарстан"]
[43,"Муниципальное автономное общеобразовательное учреждение города Набережные Челны \"Средняя общеобразовательная школа № 17\" Республики Татарстан","ж",8,8,13,10,12,6,7,27,75,null,null,130,null,"нет","Гельметдинова Лилия Фанисовна","Муниципальное автономное общеобразовательное учреждение города Набережные Челны \"Средняя общеобразовательная школа № 17\" Республики Татарстан"]
[44,"Муниципальное бюджетное общеобразовательное учреждение \"Центр образования - Гимназия №57 \"Притяжение\" города Набережные Челны Республики Татарстан","ж",8,8,15,12,11,0,8,29,75,null,null,130,null,"нет","Шевченко Людмила Александровна","Муниципальное бюджетное общеобразовательное учреждение \"Центр образования - Гимназия №57 \"Притяжение\" города Набережные Челны Республики Татарстан"]
[45,"Муниципальное автономное общеобразовательно учреждение \"Лицей № 78 им.А.С.Пушкина\" города Набережные Челны Республики Татарстан","ж",7,7,18,0,20,0,10,27,75,null,null,130,null,"нет","Габдрахманова Гульнара Минияновна","Муниципальное автономное общеобразовательно учреждение \"Лицей № 78 им.А.С.Пушкина\" города Набережные Челны Республики Татарстан"]
[46,"Муниципальное автономное общеобразовательное учреждение \"Гимназия №61\" города Набережные Челны Республики Татарстан","м",8,8,19,11,18,0,11,15,74,null,null,130,null,"нет","Алекбаева Кадрия Вафировна","Муниципальное автономное общеобразовательное учреждение \"Гимназия №61\" города Набережные Челны Республики Татарстан"]
[47,"Муниципальное бюджетное общеобразовательное учреждение \"Гимназия №54\" города Набережные Челны Республики Татарстан","ж",8,8,16,8,12,2,5,30,73,null,null,130,null,"нет","Григорьева Юлия Эдуардовна","Муниципальное бюджетное общеобразовательное учреждение \"Гимназия №54\" города Набережные Челны Республики Татарстан"]
[48,"Муниципальное бюджетное общеобразовательное учреждение \"Центр образования - Гимназия №57 \"Притяжение\" города Набережные Челны Республики Татарстан","ж",8,8,18,12,11,4,8,19,72,null,null,130,null,"нет","Шевченко Людмила Александровна","Муниципальное бюджетное общеобразовательное учреждение \"Центр образования - Гимназия №57 \"Притяжение\" города Набережные Челны Республики Татарстан"]
[49,"Муниципальное бюджетное общеобразовательное учреждение \"Средняя общеобразовательная школа \"Центр образования №16\" города Набережные Челны Республики Татарстан","ж",8,8,18,10,6,2,8,28,72,null,null,130,null,"нет","Пронина Татьяна Геннадьевна","Муниципальное бюджетное общеобразовательное учреждение \"Средняя общеобразовательная школа \"Центр образования №16\" города Набережные Челны Республики Татарстан"]
[50,"Муниципальное бюджетное общеобразовательное учреждение \"Гимназия №14\" города Набережные Челны Республики Татарстан","ж",8,8,19,10,13,0,4,26,72,null,null,130,null,"нет","Надыршина Гульшат Фирдаусовна, Северина Вера Леонидовна","Муниципальное бюджетное общеобразовательное учреждение \"Гимназия №14\" города Набережные Челны Республики Татарстан"]
[51,"Мунициапльное автономное общеобразовательное учреждение города Набережные Челны \"Гимназия № 76\" Республики Татарстан","ж",7,7,17,11,11,0,10,23,72,null,null,130,null,"нет","Голубина Анна Николаевна","Мунициапльное автономное общеобразовательное учреждение города Набережные Челны \"Гимназия № 76\" Республики Татарстан"]
[52,"Муниципальное бюджетное общеобразовательное учреждение \"Центр образования - Гимназия №57 \"Притяжение\" города Набережные Челны Республики Татарстан","ж",6,7,18,10,14,2,5,23,72,null,null,130,null,"нет","Шевченко Людмила Александровна","Муниципальное бюджетное общеобразовательное учреждение \"Центр образования - Гимназия №57 \"Притяжение\" города Набережные Челны Республики Татарстан"]
[53,"Муниципальное автономное общеобразовательное учреждение \"Гимназия №61\" города Набережные Челны Республики Татарстан","ж",7,7,17,10,14,6,5,20,72,null,null,130,null,"нет","Юшачкова Виолетта Тагировна","Муниципальное автономное общеобразовательное учреждение \"Гимназия №61\" города Набережные Челны Республики Татарстан"]
[54,"Мунициапальное автономное общеобразовательное учреждение города Набережные Челны \"Гимназия № 76\" Республики Татарстан","ж",7,7,17,9,11,2,8,25,72,null,null,130,null,"нет","Морозова Лилия Петровна","Мунициапальное автономное общеобразовательное учреждение города Набережные Челны \"Гимназия № 76\" Республики Татарстан"]
[55,"Муниципальное бюджетное общеобразовательное учреждение \"Средняя общеобразовательная школа №10\" города Набережные Челны Республики Татарстан","ж",7,7,17,13,11,2,6,21,70,null,null,130,null,"нет","Абдурахманова Риана Усмановна","Муниципальное бюджетное общеобразовательное учреждение \"Средняя общеобразовательная школа №10\" города Набережные Челны Республики Татарстан"]
[56,"Муниципальное бюджетное общеобразовательное учреждение \"Средняя общеобразовательная школа №44 с углубленным изучением отдельных предметов\" города Набережные Челны Республики Татарстан","ж",7,7,17,7,9,2,8,26,69,null,null,130,null,"нет","Нуртдинова Лилия Валерьевна","Муниципальное бюджетное общеобразовательное учреждение \"Средняя общеобразовательная школа №44 с углубленным изучением отдельных предметов\" города Набережные Челны Республики Татарстан"]
[57,"Муниципальное бюджетная общеобразовательное учреждение \"Профильный лицей № 42\" города Набережные Челны Республики Татарстан","ж",8,8,19,9,14,2,7,17,68,null,null,130,null,"нет","Некрасова Елена Васильевна","Муниципальное бюджетная общеобразовательное учреждение \"Профильный лицей № 42\" города Набережные Челны Республики Татарстан"]
[58,"Муниципальное автономное общеобразовательное учреждение \"Лицей инновационных технологий №36\" города Набережные Челны Республики Татарстан","ж",8,8,13,9,13,0,6,27,68,null,null,130,null,"нет","Салихова Алёна Владимировна","Муниципальное автономное общеобразовательное учреждение \"Лицей инновационных технологий №36\" города Набережные Челны Республики Татарстан"]
[59,"Муниципальное бюджетное общеобразовательное учреждение \"Средняя общеобразовательная школа №58\" города Набережные Челны Республики Татарстан","ж",8,8,17,12,13,2,5,18,67,null,null,130,null,"нет","Михайлова Эра Антониевна, Ольга Николаевна","Муниципальное бюджетное общеобразовательное учреждение \"Средняя общеобразовательная школа №58\" города Набережные Челны Республики Татарстан"]
[60,"Муниципальное общеобразовательное учреждение \"Средняя общеобразовательная школа №52\" города Набережные Челны Республики Татарстан","ж",8,8,17,8,4,2,12,24,67,null,null,130,null,"нет","Юнусов Марат Марселевич","Муниципальное общеобразовательное учреждение \"Средняя общеобразовательная школа №52\" города Набережные Челны Республики Татарстан"]
[61,"Муниципальное бюджетное общеобразовательное учреждение \"Средняя общеобразовательная школа №19 с углубленным изучением отдельных предметов\" города Набережные Челны Республики Татарстан","ж",7,7,18,8,11,2,8,20,67,null,null,130,null,"нет","Ковалева Наиля Рафаильевна","Муниципальное бюджетное общеобразовательное учреждение \"Средняя общеобразовательная школа №19 с углубленным изучением отдельных предметов\" города Набережные Челны Республики Татарстан"]
[62,"Муниципальное бюджетная общеобразовательное учреждение \"Профильный лицей № 42\" города Набережные Челны Республики Татарстан","ж",8,8,18,10,12,6,1,20,67,null,null,130,null,"нет","Некрасова Елена Васильевна","Муниципальное бюджетная общеобразовательное учреждение \"Профильный лицей № 42\" города Набережные Челны Республики Татарстан"]
[63,"Муниципальное автономное образовательное учреждение города Набережные Челны «Средняя общеобразовательная школа №40 с углубленным изучением отдельных предметов» Республики Татарстан","ж",8,8,18,9,8,2,6,23,66,null,null,130,null,"нет","Кадырова Ирина Зиновьевна","Муниципальное автономное образовательное учреждение города Набережные Челны «Средняя общеобразовательная школа №40 с углубленным изучением отдельных предметов» Республики Татарстан"]
[64,"Муниципальное бюджетное общеобразовательное учреждение \" Средняя общеобразовательная школа №18 с углубленным изучением отдельных предметов\" города Набережные Челны Республики Татарстан","ж",7,7,10,8,15,6,6,21,66,null,null,130,null,"нет","Горбунова Виолетта Вячеславовна","Муниципальное бюджетное общеобразовательное учреждение \" Средняя общеобразовательная школа №18 с углубленным изучением отдельных предметов\" города Набережные Челны Республики Татарстан"]
[65,"Муниципальное автномное образовательное учреждение \"Средняя общеобразовательная школа №1\" города Набережные Челны Республики Татарстан","ж",8,8,18,8,12,0,3,22,{"$f":"SUM(F66:K66)","v":63},null,null,130,null,"нет","Ахмадуллина Энже Захидовна","Муниципальное автномное образовательное учреждение \"Средняя общеобразовательная школа №1\" города Набережные Челны Республики Татарстан"]
[66,"Муниципальное бюджетное общеобразовательное учреждение \"Средняя общеобразовательная школа №19 с углубленным изучением отдельных предметов\" города Набережные Челны Республики Татарстан","ж",7,7,19,10,6,2,6,20,63,null,null,130,null,"нет","Ковалева Наиля Рафаильевна","Муниципальное бюджетное общеобразовательное учреждение \"Средняя общеобразовательная школа №19 с углубленным изучением отдельных предметов\" города Набережные Челны Республики Татарстан"]
[67,"Муниципальное бюджетное общеобразовательное учреждение \"Центр образования - Гимназия №57 \"Притяжение\" города Набережные Челны Республики Татарстан","м",7,7,16,7,12,2,3,22,62,null,null,130,null,"нет","Шевченко Людмила Александровна","Муниципальное бюджетное общеобразовательное учреждение \"Центр образования - Гимназия №57 \"Притяжение\" города Набережные Челны Республики Татарстан"]
[68,"Муниципальное бюджетное общеобразовательное учреждение \"Средняя общеобразовательная школа №11\" города Набережные Челны Республики Татарстан","ж",8,8,18,5,10,2,6,20,61,null,null,130,null,"нет","Львова Ольга Игоревна","Муниципальное бюджетное общеобразовательное учреждение \"Средняя общеобразовательная школа №11\" города Набережные Челны Республики Татарстан"]
[69,"Муниципальное автономное общеобразовательное учреждение \"Средняя общеобразовтельная школа №35 с углубленным изучением отдельных предметов\" города Набережные Челны Республики Татарстан","ж",8,8,14,11,8,0,8,20,61,null,null,130,null,"нет","Ахметгалимова Ольга Николаевна","Муниципальное автономное общеобразовательное учреждение \"Средняя общеобразовтельная школа №35 с углубленным изучением отдельных предметов\" города Набережные Челны Республики Татарстан"]
[70,"Муниципальное автономное общеобразовательное учреждение города Набережные Челны «Средняя общеобразовательная школа №56» Республики Татарстан","ж",7,7,16,9,8,6,6,16,61,null,null,130,null,"нет","Нуртдинова Ляйля Равгатовна","Муниципальное автономное общеобразовательное учреждение города Набережные Челны «Средняя общеобразовательная школа №56» Республики Татарстан"]
[71,"Муниципальное бюджетное общеобразовательное учреждение \"Средняя общеобразовательная школа №44 с углубленным изучением отдельных предметов\" города Набережные Челны Республики Татарстан","ж",7,7,17,6,6,2,4,26,61,null,null,130,null,"нет","Нуртдинова Лилия Валерьевна, Фаизрахманова Фания Ахметовна","Муниципальное бюджетное общеобразовательное учреждение \"Средняя общеобразовательная школа №44 с углубленным изучением отдельных предметов\" города Набережные Челны Республики Татарстан"]
[73,"Муниципальное бюджетное общеобразовательное учреждение \"Средняя общеобразовательная школа №31 с углубленным изучением отдельных предметов\" города Набережные Челны Республики Татарстан","ж",8,8,17,8,9,4,5,17,60,null,null,130,null,"нет","Кашапова Лейсан Ирековна","Муниципальное бюджетное общеобразовательное учреждение \"Средняя общеобразовательная школа №31 с углубленным изучением отдельных предметов\" города Набережные Челны Республики Татарстан"]
[75,"Муниципальное бюджетное общеобразовательное учреждение \"Средняя общеобразовательная школа №46 имени кавалера ордена Мужества Дмитрия Бадретдинова\" города Набережные Челны Республики Татарстан","ж",7,7,19,9,12,2,5,13,60,null,null,130,null,"нет","Семёнова Надежда Ивановна, Лейсан Лимаровна","Муниципальное бюджетное общеобразовательное учреждение \"Средняя общеобразовательная школа №46 имени кавалера ордена Мужества Дмитрия Бадретдинова\" города Набережные Челны Республики Татарстан"]
[72,"Муниципальное бюджетное образовательное учреждение «Средняя общеобразовательная школа 28» города Набережные Челны Республики Татарстан","м",8,8,17,10,7,0,4,22,60,null,null,130,null,"нет","Ханова Эльвина Сергеевна","Муниципальное бюджетное образовательное учреждение «Средняя общеобразовательная школа 28» города Набережные Челны Республики Татарстан"]
[74,"Муниципальное бюджетное общеобразовательное учреждение «Лицей-интернат №79» города Набережные Челны Республики Татарстан","м",7,7,8,10,13,2,6,21,60,null,null,130,null,"нет","Габдрахманова Гульнара Минияновна","Муниципальное бюджетное общеобразовательное учреждение «Лицей-интернат №79» города Набережные Челны Республики Татарстан"]
[76,"Муниципальное автономное общеобразовательное учреждение города Набережные Челны \"Средняя общеобразовательная школа №48\" Республики Татарстан","ж",8,8,16,9,1,0,5,28,59,null,null,130,null,"нет","Марусева Ольга Владимировна","Муниципальное автономное общеобразовательное учреждение города Набережные Челны \"Средняя общеобразовательная школа №48\" Республики Татарстан"]
[77,"Муниципальное бюджетная общеобразовательное учреждение \"Профильный лицей № 42\" города Набережные Челны Республики Татарстан","ж",7,7,19,10,7,2,3,18,59,null,null,130,null,"нет","Некрасова Елена Васильевна","Муниципальное бюджетная общеобразовательное учреждение \"Профильный лицей № 42\" города Набережные Челны Республики Татарстан"]
[78,"Муниципальное автономное общеобразовательное учреждение города Набережные Челны \"Средняя общеобразовательная школа № 17\" Республики Татарстан","ж",8,8,15,0,5,4,5,30,59,null,null,130,null,"нет","Гельметдинова Лилия Фанисовна","Муниципальное автономное общеобразовательное учреждение города Набережные Челны \"Средняя общеобразовательная школа № 17\" Республики Татарстан"]
[79,"Муниципальное бюджетное общеобразовательное учреждение \"Средняя общеобразовательная школа №44 с углубленным изучением отдельных предметов\" города Набережные Челны Республики Татарстан","ж",8,8,19,13,1,0,6,19,58,null,null,130,null,"нет","Нуртдинова Лилия Валерьевна","Муниципальное бюджетное общеобразовательное учреждение \"Средняя общеобразовательная школа №44 с углубленным изучением отдельных предметов\" города Набережные Челны Республики Татарстан"]
[80,"Муниципальное автономное общеобразовательное учреждение города Набережные Челны «Средняя общеобразовательная школа №56» Республики Татарстан","ж",8,8,18,9,7,0,6,18,58,null,null,130,null,"нет","Калимуллина Назия Ибрагимовна","Муниципальное автономное общеобразовательное учреждение города Набережные Челны «Средняя общеобразовательная школа №56» Республики Татарстан"]
[81,"Муниципальное бюджетное общеобразовательное учреждение \"Средняя общеобразовательная школа \"Центр образования №16\" города Набережные Челны Республики Татарстан","м",7,7,16,9,12,0,2,19,58,null,null,130,null,"нет","Пронина Татьяна Геннадьевна","Муниципальное бюджетное общеобразовательное учреждение \"Средняя общеобразовательная школа \"Центр образования №16\" города Набережные Челны Республики Татарстан"]
[82,"Муниципальное бюджетное общеобразовательное учреждение \"Средняя общеобразовательная школа № 27\" города Набережные Челны Республики Татарстан","ж",8,8,15,4,6,6,5,21,57,null,null,130,null,"нет","Цветков Юрий Владимирович","Муниципальное бюджетное общеобразовательное учреждение \"Средняя общеобразовательная школа № 27\" города Набережные Челны Республики Татарстан"]
[83,"Муниципальное бюджетное образовательное учреждение «Средняя общеобразовательная школа 28» города Набережные Челны Республики Татарстан","ж",8,8,19,9,5,6,6,11,56,null,null,130,null,"нет","Ханова Эльвина Сергеевна","Муниципальное бюджетное образовательное учреждение «Средняя общеобразовательная школа 28» города Набережные Челны Республики Татарстан"]
[84,"Муниципальное бюджетное общеобразовательное учреждение \"Средняя общеобразовательная школа №37 с углубленным изучением отдельных предметов\" города Набережные Челны Республики Татарстан","ж",8,8,16,0,10,2,10,18,56,null,null,130,null,"нет","Лобанова Елизавета Андреевна","Муниципальное бюджетное общеобразовательное учреждение \"Средняя общеобразовательная школа №37 с углубленным изучением отдельных предметов\" города Набережные Челны Республики Татарстан"]
[85,"Муниципальное бюджетное общеобразовательное учреждение \"Средняя общеобразовательная школа №46 имени кавалера ордена Мужества Дмитрия Бадретдинова\" города Набережные Челны Республики Татарстан","ж",7,7,18,9,7,2,2,18,56,null,null,130,null,"нет","Семёнова Надежда Ивановна","Муниципальное бюджетное общеобразовательное учреждение \"Средняя общеобразовательная школа №46 имени кавалера ордена Мужества Дмитрия Бадретдинова\" города Набережные Челны Республики Татарстан"]
[86,"Государственное бюджетное общеобразовательное учреждение \"Кадетская школа №82 имени Героя Советского Союза Ильдара Маннанова\" города Набережные Челны Республики Татарстан","ж",8,8,19,7,5,0,3,20,54,null,null,130,null,"нет","Конышева Алина Александровна","Государственное бюджетное общеобразовательное учреждение \"Кадетская школа №82 имени Героя Советского Союза Ильдара Маннанова\" города Набережные Челны Республики Татарстан"]
[87,"Муниципальное автономное общеобразовательное учреждение \"Средняя общеобразовательная школа №34 с углубленным изучением отдельных предметов\" города Набережные Челны Республики Татарстан","м",7,7,12,9,11,2,2,18,54,null,null,130,null,"нет","Идрисова Элина Дабировна, Хуснуллина Гузель Агзамнуровна","Муниципальное автономное общеобразовательное учреждение \"Средняя общеобразовательная школа №34 с углубленным изучением отдельных предметов\" города Набережные Челны Республики Татарстан"]
[88,"Муниципальное бюджетное общеобразовательное учреждение \"Средняя общеобразовательная школа №46 имени кавалера ордена Мужества Дмитрия Бадретдинова\" города Набережные Челны Республики Татарстан","ж",8,8,18,10,5,2,0,18,53,null,null,130,null,"нет","Семёнова Надежда Ивановна","Муниципальное бюджетное общеобразовательное учреждение \"Средняя общеобразовательная школа №46 имени кавалера ордена Мужества Дмитрия Бадретдинова\" города Набережные Челны Республики Татарстан"]
[89,"Муниципальное бюджетное общеобразовательное учреждение \"Средняя общеобразовательная школа №46 имени кавалера ордена Мужества Дмитрия Бадретдинова\" города Набережные челны Республики Татарстан","ж",7,7,15,13,6,2,1,16,53,null,null,130,null,"нет","Семёнова Надежда Ивановна","Муниципальное бюджетное общеобразовательное учреждение \"Средняя общеобразовательная школа №46 имени кавалера ордена Мужества Дмитрия Бадретдинова\" города Набережные челны Республики Татарстан"]
[90,"Муниципальное бюджетное общеобразовательное учреждение \"Средняя общеобразовательная школа № 27\" города Набережные Челны Республики Татарстан","ж",7,7,14,9,15,2,4,8,52,null,null,130,null,"нет","Цветков Юрий Владимирович","Муниципальное бюджетное общеобразовательное учреждение \"Средняя общеобразовательная школа № 27\" города Набережные Челны Республики Татарстан"]
[91,"Муниципальное бюджетное общеобразовательное учреждение \"Средняя общеобразовательная школа №31 с углубленным изучением отдельных предметов\" города Набережные Челны Республики Татарстан","м",8,8,16,6,5,2,3,20,52,null,null,130,null,"нет","Кашапова Лейсан Ирековна","Муниципальное бюджетное общеобразовательное учреждение \"Средняя общеобразовательная школа №31 с углубленным изучением отдельных предметов\" города Набережные Челны Республики Татарстан"]
[92,"Муниципальное бюджетное общеобразовательное учреждение \"Гимназия №14\" города Набережные Челны Республики Татарстан","ж",8,8,18,9,1,0,9,14,51,null,null,130,null,"нет","Надыршина Гульшат Фирдаусовна, Северина Вера Леонидовна","Муниципальное бюджетное общеобразовательное учреждение \"Гимназия №14\" города Набережные Челны Республики Татарстан"]
[93,"Муниципальное бюджетное общеобразовательное учреждение \"Гимназия №54\" города Набережные Челны Республики Татарстан","ж",8,8,16,7,6,2,2,18,51,null,null,130,null,"нет","Григорьева Юлия Эдуардовна","Муниципальное бюджетное общеобразовательное учреждение \"Гимназия №54\" города Набережные Челны Республики Татарстан"]
[94,"Муниципальное бюджетное общеобразовательное учреждение «Средняя общеобразовательная школа №60» города Набережные Челны Республики Татарстан","ж",8,8,17,9,6,0,0,15,47,null,null,130,null,"нет","Смурякова Елена Евгеньевна","Муниципальное бюджетное общеобразовательное учреждение «Средняя общеобразовательная школа №60» города Набережные Челны Республики Татарстан"]
[95,"Муниципальное бюджетное общеобразовательное учреждение «Лицей-интернат №79» города Набережные Челны Республики Татарстан","м",7,7,18,10,6,2,2,9,47,null,null,130,null,"нет","Габдрахманова Гульнара Минияновна","Муниципальное бюджетное общеобразовательное учреждение «Лицей-интернат №79» города Набережные Челны Республики Татарстан"]
[96,"Муниципальное бюджетное общеобразовательное учреждение \"Средняя общеобразовательная школа №10\" города Набережные Челны Республики Татарстан","м",7,7,13,9,6,2,0,15,45,null,null,130,null,"нет","Абдурахманова Риана Усмановна, Усманова","Муниципальное бюджетное общеобразовательное учреждение \"Средняя общеобразовательная школа №10\" города Набережные Челны Республики Татарстан"]
[97,"Муниципальное автономное общеобразовательное учреждение \"Средняя общеобразовательная школа №34 с углубленным изучением отдельных предметов\" города Набережные Челны Республики Татарстан","м",7,7,14,8,4,0,2,16,44,null,null,130,null,"нет","Идрисова Элина Дабировна","Муниципальное автономное общеобразовательное учреждение \"Средняя общеобразовательная школа №34 с углубленным изучением отдельных предметов\" города Набережные Челны Республики Татарстан"]
[98,"Муниципальное автономное общеобразовательное учреждение города Набережные Челны «Средняя общеобразовательная школа №56» Республики Татарстан","ж",7,7,14,0,2,2,4,13,35,null,null,130,null,"нет","Нуртдинова Ляйля Равгатовна","Муниципальное автономное общеобразовательное учреждение города Набережные Челны «Средняя общеобразовательная школа №56» Республики Татарстан"]
[99,"Муниципальное автномное образовательное учреждение \"Средняя общеобразовательная школа №1\" города Набережные Челны Республики Татарстан","м",8,8,5,0,6,2,2,13,28,null,null,130,null,"нет","Ахмадуллина Энже Захидовна","Муниципальное автномное образовательное учреждение \"Средняя общеобразовательная школа №1\" города Набережные Челны Республики Татарстан"]
[100,"Муниципальное автономное общеобразовательное учреждение «Гимназия №77» города Набережные Челны Республики Татарстан","ж",8,9,15.5,24.5,26,12,14,48,140,null,null,170,"победитель","да","Ахметшина Татьяна Ивановна","Муниципальное автономное общеобразовательное учреждение «Гимназия №77» города Набережные Челны Республики Татарстан"]
[101,"Муниципальное бюджетное общеобразовательное учреждение \" Центр образования - Гимназия №57 \"Притяжение\" города Набережные Челны Республики Татарстан","ж",9,9,16,22,24,8,13,40,123,null,null,170,"призёр","нет","Шевченко Людмила Александровна","Муниципальное бюджетное общеобразовательное учреждение \" Центр образования - Гимназия №57 \"Притяжение\" города Набережные Челны Республики Татарстан"]
[102,"Муниципальное автономное общеобразовательное учреждение города Набережные Челны «Гимназия №61» Республики Татарстан","ж",9,9,20,25,29,3,10,36,123,null,null,170,"призёр","нет","Мельчакова Татьяна Валерьевна","Муниципальное автономное общеобразовательное учреждение города Набережные Челны «Гимназия №61» Республики Татарстан"]
[103,"Муниципальное бюджетное общеобразовательное учреждение «Гимназия №26» города Набережные Челны Республики Татарстан","ж",9,9,18,18.5,25,1,13,43,118.5,null,null,170,"призёр","нет","Юдакова Мария Васильевна","Муниципальное бюджетное общеобразовательное учреждение «Гимназия №26» города Набережные Челны Республики Татарстан"]
[104,"Муниципальное бюджетное общеобразовательное учреждение \"Средняя общеобразовательная школа №32 с углубленным изучением отдельных предметов\" города Набережные Челны Республики Татарстан","ж",9,9,16.5,18.5,19,0,10,45,109,null,null,170,"призёр","нет","Числова Галина Нефедовна","Муниципальное бюджетное общеобразовательное учреждение \"Средняя общеобразовательная школа №32 с углубленным изучением отдельных предметов\" города Набережные Челны Республики Татарстан"]
[105,"Муниципальное бюджетное общеобразовательное учреждение «Гимназия №26» города Набережные Челны Республики Татарстан","ж",9,9,16,22,12,4,13,40,107,null,null,170,"призёр","нет","Юдакова Мария Васильевна","Муниципальное бюджетное общеобразовательное учреждение «Гимназия №26» города Набережные Челны Республики Татарстан"]
[106,"Муниципальное бюджетное общеобразовательное учреждение \" Центр образования - Гимназия №57 \"Притяжение\" города Набережные Челны Республики Татарстан","ж",9,9,13,16.5,19,2,10,32,92.5,null,null,170,"призёр","нет","Шевченко Людмила Александровна","Муниципальное бюджетное общеобразовательное учреждение \" Центр образования - Гимназия №57 \"Притяжение\" города Набережные Челны Республики Татарстан"]
[107,"Муниципальное автономное общеобразовательное учреждение города Набережные Челны «Гимназия №61» Республики Татарстан","ж",9,9,11,20.5,12,3,5,40,91.5,null,null,170,"призёр","нет","Мельчакова Татьяна Валерьевна","Муниципальное автономное общеобразовательное учреждение города Набережные Челны «Гимназия №61» Республики Татарстан"]
[108,"Муниципальное бюджетное общеобразовательное учреждение «Средняя общеобразовательная школа №11» города Набережные Челны Республики Татарстан","ж",9,9,12,26,16,0,10,27,91,null,null,170,"призёр","нет","Львова Ольга Игоревна","Муниципальное бюджетное общеобразовательное учреждение «Средняя общеобразовательная школа №11» города Набережные Челны Республики Татарстан"]
[109,"Муниципальное бюджетное общеобразовательное учреждение «Средняя общеобразовательная школа №6» города Набережные Челны Республики Татарстан","ж",9,9,13,19.5,1,2,9,41,85.5,null,null,170,"призёр","нет","Запивахина Ирина Викторовна","Муниципальное бюджетное общеобразовательное учреждение «Средняя общеобразовательная школа №6» города Набережные Челны Республики Татарстан"]
[110,"Муниципальное бюджетное общеобразовательное учреждение «Средняя общеобразовательная школа №5»  города Набережные Челны Республики Татарстан","ж",9,9,10,19,12,0,8,34,83,null,null,170,null,"нет","Хабибуллина Светлана Фаизовна","Муниципальное бюджетное общеобразовательное учреждение «Средняя общеобразовательная школа №5»  города Набережные Челны Республики Татарстан"]
[111,"Муниципальное бюджетное общеобразовательное учреждение  \"Средняя общеобразовательная школа №45 с углубленным изучением отдельных предметов\" города Набережные Челны Республики Татарстан","ж",9,9,9,12.5,3,3,10,45,82.5,null,null,170,null,"нет","Кульдюшева Раушания Габдулахатовна","Муниципальное бюджетное общеобразовательное учреждение  \"Средняя общеобразовательная школа №45 с углубленным изучением отдельных предметов\" города Набережные Челны Республики Татарстан"]
[112,"Муниципальное автономное общеобразовательное учреждение города Набережные Челны «Средняя общеобразовательная школа №35 с углубленным изучением отдельных предметов»  Республики Татарстан","ж",9,9,15,14.5,2,2,10,38,81.5,null,null,170,null,"нет","Бахтина Гульнара Ильбаевна","Муниципальное автономное общеобразовательное учреждение города Набережные Челны «Средняя общеобразовательная школа №35 с углубленным изучением отдельных предметов»  Республики Татарстан"]
[113,"Муниципальное бюджетное общеобразовательное учреждение \"Средняя общеобразовательная школа № 41\" города Набережные Челны Республики Татарстан","ж",9,9,8,11.5,8,6,11,34,78.5,null,null,170,null,"нет","Савельева Наталья Николаевна","Муниципальное бюджетное общеобразовательное учреждение \"Средняя общеобразовательная школа № 41\" города Набережные Челны Республики Татарстан"]
[114,"Муниципальное бюджетное общеобразовательное учреждение «Средняя общеобразовательная школа №58» города Набережные Челны Республики Татарстан","ж",9,9,13,12,4,9,4,33,75,null,null,170,null,"нет","Бойкив Ольга Николаевна","Муниципальное бюджетное общеобразовательное учреждение «Средняя общеобразовательная школа №58» города Набережные Челны Республики Татарстан"]
[115,"Муниципальное бюджетное общеобразовательное учреждение \" Центр образования - Гимназия №57 \"Притяжение\" города Набережные Челны Республики Татарстан","ж",9,9,6,17,11,4,10,27,75,null,null,170,null,"нет","Шевченко Людмила Александровна","Муниципальное бюджетное общеобразовательное учреждение \" Центр образования - Гимназия №57 \"Притяжение\" города Набережные Челны Республики Татарстан"]
[116,"Муниципальное бюджетное общеобразовательное учреждение «Средняя общеобразовательная школа №60» города Набережные Челны Республики Татарстан","ж",9,9,6,15.5,3,4.5,8,38,75,null,null,170,null,"нет","Таштамирова Регина Равиловна","Муниципальное бюджетное общеобразовательное учреждение «Средняя общеобразовательная школа №60» города Набережные Челны Республики Татарстан"]
[117,"Муниципальное бюджетное общеобразовательное учреждение «Средняя общеобразовательная школа №33»города Набережные Челны Республики Татарстан","ж",9,9,8.5,12.5,1,3,11,37,73,null,null,170,null,"нет","Гарифуллина Эльвира Флюровна","Муниципальное бюджетное общеобразовательное учреждение «Средняя общеобразовательная школа №33»города Набережные Челны Республики Татарстан"]
[118,"Муниципальное бюджетное общеобразовательное учреждение   \"Средняя общеобразовательная  школа №37 с углубленным изучением отдельных предметов» города Набережные Челны Республики Татарстан","ж",9,9,9.5,13,3,2,10,35,72.5,null,null,170,null,"нет","Мусина Любовь Владимировна","Муниципальное бюджетное общеобразовательное учреждение   \"Средняя общеобразовательная  школа №37 с углубленным изучением отдельных предметов» города Набережные Челны Республики Татарстан"]
[119,"Муниципальное бюджетное образовательное учреждение «Средняя общеобразовательная школа №25» города Набережные Челны Республики Татарстан","ж",9,9,8,18.5,5,1,10,30,72.5,null,null,170,null,"нет","Файрушина Лейсан Владимировна","Муниципальное бюджетное образовательное учреждение «Средняя общеобразовательная школа №25» города Набережные Челны Республики Татарстан"]
[120,"Муниципальное бюджетное общеобразовательное учреждение «Средняя общеобразовательная школа №53» города Набережные Челны Республики Татарстан","ж",9,9,8,14.5,0,3,14,32,71.5,null,null,170,null,"нет","Дурнева Ирина Геннадьевна","Муниципальное бюджетное общеобразовательное учреждение «Средняя общеобразовательная школа №53» города Набережные Челны Республики Татарстан"]
[121,"Муниципальное бюджетное общеобразовательное учреждение «Средняя общеобразовательная школа №31 с углубленным изучением отдельных предметов» города Набережные Челны Республики Татарстан","м",9,9,10.5,14.5,8,3,9,25,70,null,null,170,null,"нет","Кашапова Лейсан Ирековна","Муниципальное бюджетное общеобразовательное учреждение «Средняя общеобразовательная школа №31 с углубленным изучением отдельных предметов» города Набережные Челны Республики Татарстан"]
[122,"Муниципальное автономное общеобразовательное учреждение города Набережные Челны «Лицей № 78 им. А.С.Пушкина» города Набережные Челны Республики Татарстан","м",9,9,8,14,6,0,10,29,67,null,null,170,null,"нет","Федотова Татьяна Юрьевна","Муниципальное автономное общеобразовательное учреждение города Набережные Челны «Лицей № 78 им. А.С.Пушкина» города Набережные Челны Республики Татарстан"]
[123,"Муниципальное автономное общеобразовательное учреждение города Набережные Челны «Средняя общеобразовательная школа №48»  Республики Татарстан","ж",9,9,8.5,13.5,0,3,8,34,67,null,null,170,null,"нет","Марусева Ольга Владимировна","Муниципальное автономное общеобразовательное учреждение города Набережные Челны «Средняя общеобразовательная школа №48»  Республики Татарстан"]
[124,"Муниципальное бюджетное общеобразовательное учреждение «Лицей-интернат №79» города Набережные Челны Республики Татарстан","м",9,9,4,13.5,0,4,7,38,66.5,null,null,170,null,"нет","Габдрахманова Гульнара Минияновна","Муниципальное бюджетное общеобразовательное учреждение «Лицей-интернат №79» города Набережные Челны Республики Татарстан"]
[125,"Муниципальное автономное общеобразовательное учреждение города Набережные Челны «Лицей № 78 им. А.С.Пушкина» Республики Татарстан","ж",9,9,8,9,14,0,9,25,65,null,null,170,null,"нет","Федотова Татьяна Юрьевна","Муниципальное автономное общеобразовательное учреждение города Набережные Челны «Лицей № 78 им. А.С.Пушкина» Республики Татарстан"]
[126,"Муниципальное автономное общеобразовательное учреждение города Набережные Челны \"Гимназия №76\"  Республики Татарстан","ж",9,9,12,8.5,4,0,10,30,64.5,null,null,170,null,"нет","Морозова Лилия Петровна","Муниципальное автономное общеобразовательное учреждение города Набережные Челны \"Гимназия №76\"  Республики Татарстан"]
[127,"Муниципальное автономное общеобразовательное учреждение города Набережные Челны \"Средняя общеобразовательная школа №51»  Республики Татарстан","ж",9,9,12,10,3,0,7,30,62,null,null,170,null,"нет","Максимова Мария Петровна","Муниципальное автономное общеобразовательное учреждение города Набережные Челны \"Средняя общеобразовательная школа №51»  Республики Татарстан"]
[128,"Муниципальное бюджетное общеобразовательное учреждение «Средняя общеобразовательная школа №18 с углубленным изучением отдельных предметов» города Набережные Челны Республики Татарстан","ж",9,9,4,17,4,1,6,30,62,null,null,170,null,"нет","Горбунова Виолетта Вячеславовна","Муниципальное бюджетное общеобразовательное учреждение «Средняя общеобразовательная школа №18 с углубленным изучением отдельных предметов» города Набережные Челны Республики Татарстан"]
[129,"Муниципальное автономное общеобразовательное учреждение города Набережные Челны «Лицей № 78 им. А.С.Пушкина»  Республики Татарстан","ж",9,9,5.5,12.5,5,1,9,28,{"$f":"SUM(F130:K130)","v":61},null,null,170,null,"нет","Федотова Татьяна Юрьевна","Муниципальное автономное общеобразовательное учреждение города Набережные Челны «Лицей № 78 им. А.С.Пушкина»  Республики Татарстан"]
[130,"Муниципальное автономное общеобразовательное учреждение города Набережные Челны «Кадетская школа №49»Республики Татарстан","ж",9,9,8,0,7,2,10,30,57,null,null,170,null,"нет","Селиванова Ирина Владимировна","Муниципальное автономное общеобразовательное учреждение города Набережные Челны «Кадетская школа №49» города Набережные Челны Республики Татарстан"]
[131,"Муниципальное бюджетное общеобразовательное учреждение «Средняя общеобразовательная школа №52» города Набережные Челны Республики Татарстан ","ж",9,9,1,9.5,0,1,8,37,56.5,null,null,170,null,"нет","Юнусов Марат Марсельевич","Муниципальное бюджетное общеобразовательное учреждение «Средняя общеобразовательная школа №52» города Набережные Челны Республики Татарстан "]
[132,"Муниципальное бюджетное общеобразовательное учреждение «Средняя общеобразовательная школа №27» города Набережные Челны Республики Татарстан","ж",9,9,9,10,0,2,8.5,25,54.5,null,null,170,null,"нет","Цветков Юрий Владимирович","Муниципальное бюджетное общеобразовательное учреждение «Средняя общеобразовательная школа №27» города Набережные Челны Республики Татарстан"]
[133,"Государственное бюджетное общеобразовательное учреждение «Кадетская школа № 82 имени Героя Советского Союза Ильдара Маннанова» города Набережные Челны Республики Татарстан","м",9,9,10.5,13.5,0,0,7.5,22,53.5,null,null,170,null,"нет","Мусин Айрат Салихзянович","Государственное бюджетное общеобразовательное учреждение «Кадетская школа № 82 имени Героя Советского Союза Ильдара Маннанова» города Набережные Челны Республики Татарстан"]
[134,"Муниципальное бюджетное общеобразовательное учреждение «Средняя общеобразовательная школа «Центр образования № 62» города Набережные Челны Республики Татарстан","ж",9,9,4,12,0,6,3,28,53,null,null,170,null,"нет","Волков Олег Олегович","Муниципальное бюджетное общеобразовательное учреждение «Средняя общеобразовательная школа «Центр образования № 62» города Набережные Челны Республики Татарстан"]
[135,"Муниципальное бюджетное общеобразовательное учреждение «Средняя общеобразовательная школа №28» города Набережные Челны Республики Татарстан","ж",9,9,9,12.5,2,0,7,22,52.5,null,null,170,null,"нет","Зимина Наталья Григорьевна","Муниципальное бюджетное общеобразовательное учреждение «Средняя общеобразовательная школа №28» города Набережные Челны Республики Татарстан"]
[136,"Муниципальное бюджетное общеобразовательное учреждение \"Средняя общеобразовательная школа №32 с углубленным изучением отдельных предметов\" города Набережные Челны Республики Татарстан","ж",9,9,7,7,1,2,10,25,52,null,null,170,null,"нет","Числова Галина Нефедовна","Муниципальное бюджетное общеобразовательное учреждение \"Средняя общеобразовательная школа №32 с углубленным изучением отдельных предметов\" города Набережные Челны Республики Татарстан"]
[137,"Муниципальное бюджетное общеобразовательное учреждение «Средняя общеобразовательная школа «Центр образования № 62» города Набережные Челны Республики Татарстан","ж",9,9,3,12.5,0,0,5,26,46.5,null,null,170,null,"нет","Пичугова Лейсан Ниязовна","Муниципальное бюджетное общеобразовательное учреждение «Средняя общеобразовательная школа «Центр образования № 62» города Набережные Челны Республики Татарстан"]
[138,"Муниципальное бюджетное общеобразовательное учреждение «Профильный лицей №42» города Набережные Челны Республики Татарстан","ж",9,9,4,10,0,0,10,22,46,null,null,170,null,"нет","Некрасова Елена Васильевна","Муниципальное бюджетное общеобразовательное учреждение «Профильный лицей №42» города Набережные Челны Республики Татарстан"]
[139,"Муниципальное бюджетное общеобразовательное учреждение «Лицей-интернат №79» города Набережные Челны Республики Татарстан","м",9,9,3,13,0,2,0,25,43,null,null,170,null,"нет","Габдрахманова Гульнара Минияновна","Муниципальное бюджетное общеобразовательное учреждение «Лицей-интернат №79» города Набережные Челны Республики Татарстан"]
[140,"Муниципальное бюджетное общеобразовательное учреждение \"Средняя общеобразовательная школа №20\" города Набережные Челны Республики Татарстан","м",9,9,11,0,7,1,0,12,31,null,null,170,null,"нет","Фаттахова Динара Равилевна","Муниципальное бюджетное общеобразовательное учреждение \"Средняя общеобразовательная школа №20\" города Набережные Челны Республики Татарстан"]
[141,"Муниципальное автономное общеобразовательное учреждение города Набережные Челны «Средняя общеобразовательная школа №1»  Республики Татарстан","ж",9,9,7,0,0,1,8,13,29,null,null,170,null,"нет","Ахмадуллина Энже Захидовна","Муниципальное автономное общеобразовательное учреждение города Набережные Челны «Средняя общеобразовательная школа №1»  Республики Татарстан"]
[142,"Муниципальное автономное общеобразовательное учреждение города Набережные Челны \"Средняя общеобразовательная школа №51»  Республики Татарстан","м",9,9,5.5,2,0,1,0,13,21.5,null,null,170,null,"нет","Максимова Мария Петровна","Муниципальное автономное общеобразовательное учреждение города Набережные Челны \"Средняя общеобразовательная школа №51»  Республики Татарстан"]
[143,"Муниципальное бюджетное общеобразовательное учреждение  \"Средняя общеобразовательная школа №45 с углубленным изучением отдельных предметов\" города Набережные Челны Республики Татарстан","ж",9,9,3,2,1,5,2,7,20,null,null,170,null,"нет","Кульдюшева Раушания Габдулахатовна","Муниципальное бюджетное общеобразовательное учреждение  \"Средняя общеобразовательная школа №45 с углубленным изучением отдельных предметов\" города Набережные Челны Республики Татарстан"]
[144,"Муниципальное бюджетное общеобразовательное учреждение \"Средняя общеобразовательная школа №20\"города Набережные Челны Республики Татарстан","м",9,9,2,0,0,0,3,9,14,null,null,170,null,"нет","Фаттахова Динара Равилевна","Муниципальное бюджетное общеобразовательное учреждение \"Средняя общеобразовательная школа №20\"города Набережные Челны Республики Татарстан"]
[145,"Муниципальное бюджетное общеобразовательное учреждение \"Центр образования - Гимназия №57 \"Притяжение\" города Набережные Челны Республики Татарстан","м",10,10,12,28,25,27,12,42,146,null,null,185,"победитель","да","Шевченко Людмила Александровна","Муниципальное бюджетное общеобразовательное учреждение \"Центр образования - Гимназия №57 \"Притяжение\" города Набережные Челны Республики Татарстан"]
[146,"Муниципальное бюджетное общеобразовательное учреждение «Средняя общеобразовательная школа № 19 с углубленным изучением отдельных предметов»  города Набережные Челны Республики Татарстан",null,10,10,13,21,28,24,13,40,139,null,null,185,"призёр","да","Ковалева Наиля Рафаильевна","Муниципальное бюджетное общеобразовательное учреждение «Средняя общеобразовательная школа № 19 с углубленным изучением отдельных предметов»  города Набережные Челны Республики Татарстан"]
[147,"Муниципальное автономное общеобразовательное учреждение \"Гимназия №77\" города Набережные Челны Республики Татарстан","ж",10,10,14,21,26,28,9,40,138,null,null,185,"призёр","нет","Ахметшина Татьяна Ивановна","Муниципальное автономное общеобразовательное учреждение \"Гимназия №77\" города Набережные Челны Республики Татарстан"]
[148,"Муниципальное автономное общеобразовательно учреждение \"Лицей № 78 им.А.С.Пушкина\"  города Набережные Челны Республики Татарстан","ж",10,10,16,24,24,9,15,39,127,null,null,185,"призёр","нет","Федотова Татьяна Юрьевна","Муниципальное автономное общеобразовательно учреждение \"Лицей № 78 им.А.С.Пушкина\"  города Набережные Челны Республики Татарстан"]
[149,"Муниципальное бюджетное общеобразовательное учреждение \"Гимназия № 26\" города Набережные Челны Республики Татарстан","ж",10,10,10.5,21,21.5,18,18,30,119,null,null,185,"призёр","да","Юдакова Мария Васильевна","Муниципальное бюджетное общеобразовательное учреждение \"Гимназия № 26\" города Набережные Челны Республики Татарстан"]
[150,"Муниципальное автономное общеобразовательно учреждение \"Лицей № 78 им.А.С.Пушкина\"  города Набережные Челны Республики Татарстан","ж",10,10,14.5,23.5,25,11,14,29,117,null,null,185,"призёр","нет","Федотова Татьяна Юрьевна","Муниципальное автономное общеобразовательно учреждение \"Лицей № 78 им.А.С.Пушкина\"  города Набережные Челны Республики Татарстан"]
[151,"Муниципальное автономное общеобразовательное учреждение города Набережные Челны \"Средняя общеобразовательная школа №48\" Республики Татарстан","ж",10,10,12,21,17,9,8,34,101,null,null,185,"призёр","нет","Марусева Ольга Владимировна","Муниципальное автономное общеобразовательное учреждение города Набережные Челны \"Средняя общеобразовательная школа №48\" Республики Татарстан"]
[152,"Мунициапльное автономное общеобразовательное учреждение города Набережные Челны \"Гимназия № 76\"  Республики Татарстан","ж",10,10,11.5,18.5,18,3,13,33,97,null,null,185,"призёр","нет","Чурбанова Ирина Анатольевна","Мунициапльное автономное общеобразовательное учреждение города Набережные Челны \"Гимназия № 76\"  Республики Татарстан"]
[153,"муниципальное автономное общеобразовательное учреждение \"Гимназия №61\"  города Набережные Челны Республики Татарстан","м",10,10,8.5,6.5,19,13,11,35,93,null,null,185,"призёр","нет","Алекбаева Кадрия Вафировна","муниципальное автономное общеобразовательное учреждение \"Гимназия №61\"  города Набережные Челны Республики Татарстан"]
[154,"Муниципальное автономное общеобразовательное учреждение \"Средняя общеобразовтельная школа №35 с углубленным изучением отдельных предметов\"  города Набережные Челны Республики Татарстан","ж",10,10,14,19,9,7,14,30,93,null,null,185,"призёр","нет","Бахтина Гульнара Ильбаевна,Гиматдинов Руслан Рафисович","Муниципальное автономное общеобразовательное учреждение \"Средняя общеобразовтельная школа №35 с углубленным изучением отдельных предметов\"  города Набережные Челны Республики Татарстан"]
[155,"Муниципальное автономное общеобразовательное учреждение \"Средняя общеобразовтельная школа №35 с углубленным изучением отдельных предметов\" города Набережные Челны Республики Татарстан","ж",10,10,15,19,10,0,13,25,82,null,null,185,null,"нет","Гиматдинов Руслан Рафисович","Муниципальное автономное общеобразовательное учреждение \"Средняя общеобразовтельная школа №35 с углубленным изучением отдельных предметов\" города Набережные Челны Республики Татарстан"]
[156,"муниципальное автономное общеобразовательное учреждение \"Гимназия №61\"  города Набережные Челны Республики Татарстан","ж",10,10,16,19,14,6,7,19,81,null,null,185,null,"нет","Алекбаева Кадрия Вафировна","муниципальное автономное общеобразовательное учреждение \"Гимназия №61\"  города Набережные Челны Республики Татарстан"]
[157,"Муниципальное бюджетное общеобразовательное учреждение \"Гимназия № 26\" города Набережные Челны Республики Татарстан","ж",10,10,12,8,20,11,10,19,80,null,null,185,null,"да","Юдакова Мария Васильевна","Муниципальное бюджетное общеобразовательное учреждение \"Гимназия № 26\" города Набережные Челны Республики Татарстан"]
[158,"Муниципальное бюджетное общеобразовательное учреждение \"Средняя общеобразовательная школа №33\"  города Набережные Челны Республики Татарстан","ж",10,10,11.5,18.5,13,10,6,20,79,null,null,185,null,"нет","Гарифуллина Эльвира Флюровна","Муниципальное бюджетное общеобразовательное учреждение \"Средняя общеобразовательная школа №33\"  города Набережные Челны Республики Татарстан"]
[159,"Муниципальное автономное общеобразовательно учреждение \"Лицей № 78 им.А.С.Пушкина\"  города Набережные Челны Республики Татарстан","ж",10,10,7,12,20,9,12,17,77,null,null,185,null,"нет","Федотова Татьяна Юрьевна","Муниципальное автономное общеобразовательно учреждение \"Лицей № 78 им.А.С.Пушкина\"  города Набережные Челны Республики Татарстан"]
[160,"Муниципальное автономное общеобразовательное учреждение города Набережные Челны «Средняя общеобразовательная школа №56» Республики Татарстан","ж",10,10,12,22,10,7,11,15,77,null,null,185,null,"нет","Нуртдинова Ляйля Равгатовна","Муниципальное автономное общеобразовательное учреждение города Набережные Челны «Средняя общеобразовательная школа №56» Республики Татарстан"]
[161,"Муниципальное бюджетное общеобразовательное учреждение «Средняя общеобразовательная школа №52» города Набережные Челны Республики Татарстан","ж",10,10,11,18,12,4,10,16,71,null,null,185,null,"нет","Юнусов Марат Марселевич","Муниципальное бюджетное общеобразовательное учреждение «Средняя общеобразовательная школа №52» города Набережные Челны Республики Татарстан"]
[162,"Муниципальное автономное общеобразовательное учреждение города Набережные Челны \"Средняя общеобразовательная школа № 17\"  Республики Татарстан","ж",10,10,13.5,14.5,9,2,2,30,71,null,null,185,null,"нет","Гельметдинова Лилия Фанисовна","Муниципальное автономное общеобразовательное учреждение города Набережные Челны \"Средняя общеобразовательная школа № 17\"  Республики Татарстан"]
[163,"Муниципальное бюджетное общеобразовательное учреждение \" Средняя общеобразовательная школа №18 с углубленным изучением отдельных предметов\" города Набережные Челны Республики Татарстан","ж",10,10,11,4,19,7,13,15,69,null,null,185,null,"нет","Горбунова Виолетта Вячеславовна","Муниципальное бюджетное общеобразовательное учреждение \" Средняя общеобразовательная школа №18 с углубленным изучением отдельных предметов\" города Набережные Челны Республики Татарстан"]
[164,"Муниципальное бюджетное общеобразовательное учреждение «Средняя общеобразовательная школа №60» города Набережные Челны Республики Татарстан","ж",10,10,11,12,14,5,8,17,67,null,null,185,null,"нет","Шевченко Оксана Михайловна","Муниципальное бюджетное общеобразовательное учреждение «Средняя общеобразовательная школа №60» города Набережные Челны Республики Татарстан"]
[165,"Муниципальное автономное общеобразовательное учреждение города Набережные Челны «Средняя общеобразовательная школа №56»  Республики Татарстан","ж",10,10,11.5,20.5,10,0,4,20,66,null,null,185,null,"нет","Нуртдинова Ляйля Равгатовна","Муниципальное автономное общеобразовательное учреждение города Набережные Челны «Средняя общеобразовательная школа №56»  Республики Татарстан"]
[166,"Муниципальное автномное образовательное учреждение \"Средняя общеобразовательная школа №1\" города Набережные Челны Республики Татарстан","ж",10,10,10.5,15.5,8,0,10,20,64,null,null,185,null,"нет","Ахмадуллина Энже Захидовна","Муниципальное автномное образовательное учреждение \"Средняя общеобразовательная школа №1\" города Набережные Челны Республики Татарстан"]
[167,"Муниципальное автномное образовательное учреждение \"Средняя общеобразовательная школа №1\" города Набережные Челны Республики Татарстан","ж",10,10,13.5,17.5,9,0,8,14,62,null,null,185,null,"нет","Ахмадуллина Энже Захидовна","Муниципальное автномное образовательное учреждение \"Средняя общеобразовательная школа №1\" города Набережные Челны Республики Татарстан"]
[168,"Муниципальное бюджетное общеобразовательное учреждение \"Средняя общеобразовательная школа №11\" города Набережные Челны Республики Татарстан","ж",10,10,11.5,18.5,9,6,5,11,61,null,null,185,null,"нет","Львова Ольга Игоревна","Муниципальное бюджетное общеобразовательное учреждение \"Средняя общеобразовательная школа №11\" города Набережные Челны Республики Татарстан"]
[169,"Муниципальное бюджетное общеобразовательное учреждение \"Средняя общеобразовательная школа №5\"  города Набережные Челны Республики Татарстан","ж",10,10,12.5,17.5,9,0,12,0,51,null,null,185,null,"нет","Хабихабибуллина Светлана Фаизовнабуллина С.ф.","Муниципальное бюджетное общеобразовательное учреждение \"Средняя общеобразовательная школа №5\"  города Набережные Челны Республики Татарстан"]
[170,"Муниципальное бюджетное общеобразовательное учреждение \"Средняя общеобразовательная школа №37 с углубленным изучением отдельных предметов\" города Набережные Челны Республики Татарстан","ж",10,10,11,9,0,0,0,29,49,null,null,185,null,"нет","Мурашкинцева Ирина Ильфировна","Муниципальное бюджетное общеобразовательное учреждение \"Средняя общеобразовательная школа №37 с углубленным изучением отдельных предметов\" города Набережные Челны Республики Татарстан"]
[171,"Муниципальное бюджетное общеобразовательное учреждение \"Средняя общеобразовательная школа №46 имени кавалера ордена Мужества Дмитрия Бадретдинова\" города Набережные Челны Республики Татарстан","ж",10,10,14,6,1,1,2,23,47,null,null,185,null,"нет","Харисова Светлана Геннадьевна,Семёнова Надежда Ивановна","Муниципальное бюджетное общеобразовательное учреждение \"Средняя общеобразовательная школа №46 имени кавалера ордена Мужества Дмитрия Бадретдинова\" города Набережные Челны Республики Татарстан"]
[172,"Муниципальное бюджетное общеобразовательное учреждение \"Средняя общеобразовательная школа №45 с углубленным изучением отдельных предметов\" города Набережные Челны Республики Татарстан","ж",10,10,7,11,7,0,6,16,47,null,null,185,null,"нет","Кульдюшева Раушания Габдулахатовна","Муниципальное бюджетное общеобразовательное учреждение \"Средняя общеобразовательная школа №45 с углубленным изучением отдельных предметов\" города Набережные Челны Республики Татарстан"]
[173,"Муниципальное бюджетное общеобразовательное учреждение \"Средняя общеобразовательная школа № 41\" города Набережные Челны Республики Татарстан","ж",10,10,7.5,1.5,12,2,2,16,41,null,null,185,null,"нет","Савельева Наталья Николаевна","Муниципальное бюджетное общеобразовательное учреждение \"Средняя общеобразовательная школа № 41\" города Набережные Челны Республики Татарстан"]
[174,"Муниципальное бюджетное общеобразовательное учреждение «Лицей-интернат №79» города Набережные Челны Республики Татарстан","м",10,10,15,0,0,12,5,9,41,null,null,185,null,"нет","Габдрахманова Гульнара Минияновна, Фасхутдинова Карима Ильдаровна","Муниципальное бюджетное общеобразовательное учреждение «Лицей-интернат №79» города Набережные Челны Республики Татарстан"]
[175,"Муниципальное бюджетное общеобразовательное учреждение \"Средняя общеобразовательная школа №58\" города Набережные Челны Республики Татарстан","ж",10,10,11,10,8,0,2,10,41,null,null,185,null,"нет","Михайлова Эра Антониевна","Муниципальное бюджетное общеобразовательное учреждение \"Средняя общеобразовательная школа №58\" города Набережные Челны Республики Татарстан"]
[176,"Муниципальное бюджетное общеобразовательное учреждение \"Средняя общеобразовательная школа №20\" города Набережные Челны Республики Татарстан","ж",10,10,14.5,2.5,3,0,5,15,40,null,null,185,null,"нет","Фаттахова Динара Равилевна","Муниципальное бюджетное общеобразовательное учреждение \"Средняя общеобразовательная школа №20\" города Набережные Челны Республики Татарстан"]
[177,"Муниципальное бюджетное общеобразовательное учреждение \"Средняя общеобразовательная школа №46 имени кавалера ордена Мужества Дмитрия Бадретдинова\"  города Набережные Челны Республики Татарстан","м",10,10,11,15,4,0,0,10,40,null,null,185,null,"нет","Семёнова Надежда Ивановна","Муниципальное бюджетное общеобразовательное учреждение \"Средняя общеобразовательная школа №46 имени кавалера ордена Мужества Дмитрия Бадретдинова\"  города Набережные Челны Республики Татарстан"]
[178,"Муниципальное бюджетное общеобразовательное учреждение \"Средняя общеобразовательная школа №24 с углубленным изучением отдельных предметов\"  города Набережные Челны Республики Татарстан","ж",10,10,6,12,0,0,0,19,37,null,null,185,null,"нет","Михайлова Марина Николаевна","Муниципальное бюджетное общеобразовательное учреждение \"Средняя общеобразовательная школа №24 с углубленным изучением отдельных предметов\"  города Набережные Челны Республики Татарстан"]
[179,"Муниципальное автономное общеобразовательное учреждение города Набережные Челны \"Средняя общеобразовательная школа № 17\"  Республики Татарстан","ж",10,10,0,11,4,0,2,7,24,null,null,185,null,"нет","Гельметдинова Лилия Фанисовна","Муниципальное автономное общеобразовательное учреждение города Набережные Челны \"Средняя общеобразовательная школа № 17\"  Республики Татарстан"]
[180,"Муниципальное бюджетное общеобразовательное учреждение \" Средняя общеобразовательная школа №18 с углубленным изучением отдельных предметов\" города Набережные Челны Республики Татарстан","ж",10,10,0,6,0,0,11,3,20,null,null,185,null,"нет","Гаянова Наиля Накиповна,Горбунова Виолетта Вячеславовна ","Муниципальное бюджетное общеобразовательное учреждение \" Средняя общеобразовательная школа №18 с углубленным изучением отдельных предметов\" города Набережные Челны Республики Татарстан"]
[181,"Государственное бюджетное общеобразовательное учреждение \"Кадетская школа №82 имени Героя Советского Союза Ильдара Маннанова\"  города Набережные Челны Республики Татарстан","м",10,10,10,0,0,2,0,0,12,null,null,185,null,"нет","Хайдарова Резеда Рафиковна","Государственное бюджетное общеобразовательное учреждение \"Кадетская школа №82 имени Героя Советского Союза Ильдара Маннанова\"  города Набережные Челны Республики Татарстан"]
[182,"Муниципальное бюджетное общеобразовательное учреждение \"Гимназия № 26\"  города Набережные Челны Республики Татарстан","ж",11,11,16,21,29.5,40,17,48,171.5,null,null,210,"победитель","да","Юдакова Мария Васильевна","Муниципальное бюджетное общеобразовательное учреждение \"Гимназия № 26\"  города Набережные Челны Республики Татарстан"]
[183,"Муниципальное автономное общеобразовательное учреждение города Набережные Челны \"Гимназия №76\" Республики Татарстан","ж",11,11,22,19,28,30,17,38,154,null,null,210,"призёр","да","Чурбанова Ирина Анатольевна","Муниципальное автономное общеобразовательное учреждение города Набережные Челны \"Гимназия №76\" Республики Татарстан"]
[184,"Муниципальное бюджетная общеобразовательное учреждение \"Профильный лицей № 42\" города Набережные Челны Республики Татарстан","ж",11,11,15,19,27,33,17,38,149,null,null,210,"призёр","да","Некрасова Елена Васильевна","Муниципальное бюджетная общеобразовательное учреждение \"Профильный лицей № 42\" города Набережные Челны Республики Татарстан"]
[185,"Муниципальное бюджетное общеобразовательное учреждение \"Средняя общеобразовательная школа №31 с углубленным изучением отдельных предметов\" города Набережные Челны Республики Татарстан","ж",11,11,18,19,18,28,18,39,140,null,null,210,"призёр","нет","Аржанцева Светлана Геннадьевна","Муниципальное бюджетное общеобразовательное учреждение \"Средняя общеобразовательная школа №31 с углубленным изучением отдельных предметов\" города Набережные Челны Республики Татарстан"]
[186,"Муниципальное бюджетное общеобразовательное учреждение \"Гимназия № 26\" города Набережные Челны Республики Татарстан","ж",11,11,16,22,27,13.5,19,39,136.5,null,null,210,"призёр","да","Юдакова Мария Васильевна","Муниципальное бюджетное общеобразовательное учреждение \"Гимназия № 26\" города Набережные Челны Республики Татарстан"]
[187,"Муниципальное бюджетное общеобразовательное учреждение \"Средняя общеобразовательная школа №31 с углубленным изучением отдельных предметов\" города Набережные Челны Республики Татарстан","ж",11,11,23,6.5,18,39,10,36,132.5,null,null,210,"призёр","нет","Аржанцева Светлана Геннадьевна/Кашапова Ляйсан Ириковна","Муниципальное бюджетное общеобразовательное учреждение \"Средняя общеобразовательная школа №31 с углубленным изучением отдельных предметов\" города Набережные Челны Республики Татарстан"]
[188,"Муниципальное бюджетное общеобразовательное учреждение \"Центр образования - Гимназия №57 \"Притяжение\" города Набережные Челны Республики Татарстан","ж",11,11,16,17.5,19,18,19,39,128.5,null,null,210,"призёр","да","Шевченко Людмила Александровна","Муниципальное бюджетное общеобразовательное учреждение \"Центр образования - Гимназия №57 \"Притяжение\" города Набережные Челны Республики Татарстан"]
[189,"Муниципальное бюджетное образовательное учреждение \"Средняя общеобразовательная школа №32 с углубленным изучением отдельных предметов» города Набережные Челны Республики Татарстан","ж",11,11,16,16,20,22,16,37,127,null,null,210,"призёр","нет","Числова Галина Нефедовна","Муниципальное бюджетное образовательное учреждение \"Средняя общеобразовательная школа №32 с углубленным изучением отдельных предметов» города Набережные Челны Республики Татарстан"]
[190,"Муниципальное бюджетное общеобразовательное учреждение \"Средняя общеобразовательная школа №58\" города Набережные Челны Республики Татарстан","ж",11,11,17,21,11,16,18,32,115,null,null,210,"призёр","нет","Бойкив Ольга Николаевна","Муниципальное бюджетное общеобразовательное учреждение \"Средняя общеобразовательная школа №58\" города Набережные Челны Республики Татарстан"]
[191,"Муниципальное автономное общеобразовательное учреждение \"Гимназия №61\" города Набережные Челны Республики Татарстан","ж",11,11,9,15,16,31,8,31,110,null,null,210,null,"нет","Лундовских Лариса Петровна","Муниципальное автономное общеобразовательное учреждение \"Гимназия №61\" города Набережные Челны Республики Татарстан"]
[192,"Муниципальное автономное общеобразовательное учреждение \"Гимназия №77\" города Набережные Челны Республики Татарстан","ж",11,11,19,7,23,0,18,41,108,null,null,210,null,"да","Ахметшина Татьяна Ивановна","Муниципальное автономное общеобразовательное учреждение \"Гимназия №77\" города Набережные Челны Республики Татарстан"]
[193,"Муниципальное бюджетное общеобразовательное учреждение «Средняя общеобразовательная школа №60» города Набережные Челны Республики Татарстан","ж",11,11,16,15,17,14,17,26,{"$f":"SUM(F194:K194)","v":105},null,null,210,null,"нет","Гиматдинов Руслан Рафисович","Муниципальное бюджетное общеобразовательное учреждение «Средняя общеобразовательная школа №60» города Набережные Челны Республики Татарстан"]
[194,"Муниципальное автономное общеобразовательно учреждение \"Лицей № 78 им.А.С.Пушкина\" города Набережные Челны Республики Татарстан","ж",11,11,13,16,9,11,20,35,104,null,null,210,null,"нет","Федотова Татьяна Юрьевна","Муниципальное автономное общеобразовательно учреждение \"Лицей № 78 им.А.С.Пушкина\" города Набережные Челны Республики Татарстан"]
[195,"Муниципальное автономное общеобразовательно учреждение \"Лицей № 78 им.А.С.Пушкина\" города Набережные Челны Республики Татарстан","ж",11,11,20,16,16,4,19,25,100,null,null,210,null,"нет","Федотова Татьяна Юрьевна","Муниципальное автономное общеобразовательно учреждение \"Лицей № 78 им.А.С.Пушкина\" города Набережные Челны Республики Татарстан"]
[196,"Муниципальное бюджетное общеобразовательное учреждение \"Средняя общеобразовательная школа №10\" города Набережные Челны Республики Татарстан","ж",11,11,16,17,3,6,13,31,86,null,null,210,null,"нет","Салеева Раиса Ялаевна","Муниципальное бюджетное общеобразовательное учреждение \"Средняя общеобразовательная школа №10\" города Набережные Челны Республики Татарстан"]
[197,"Муниципальное автономное общеобразовательное учреждение \"Средняя общеобразовтельная школа №35 с углубленным изучением отдельных предметов\" города Набережные Челны Республики Татарстан","ж",11,11,14,16,14,7,15,19,85,null,null,210,null,"нет","Гиматдинов Руслан Рафисович","Муниципальное автономное общеобразовательное учреждение \"Средняя общеобразовтельная школа №35 с углубленным изучением отдельных предметов\" города Набережные Челны Республики Татарстан"]
[198,"Муниципальное бюджетное общеобразовательное учреждение \"Средняя общеобразовательная школа №25\" города Набережные Челны Республики Татарстан","ж",11,11,13,4.5,14,2,16,35,84.5,null,null,210,null,"нет","Файрушина Лейсан Владимировна","Муниципальное бюджетное общеобразовательное учреждение \"Средняя общеобразовательная школа №25\" города Набережные Челны Республики Татарстан"]
[199,"Муниципальное бюджетное общеобразовательное учреждение \"Средняя общеобразовательная школа №53\" города Набережные Челны Республики Татарстан","ж",11,11,16,17.5,10,3,14,23,83.5,null,null,210,null,"нет","Дурнева Ирина Геннадьевна","Муниципальное бюджетное общеобразовательное учреждение \"Средняя общеобразовательная школа №53\" города Набережные Челны Республики Татарстан"]
[200,"Муниципальное бюджетное общеобразовательное учреждение \"Средняя общеобразовательная школа №6\" города Набережные Челны Республики Татарстан","ж",11,11,10,16.5,11,1,9,33,80.5,null,null,210,null,"нет","Запивахина Ирина Викторовна","Муниципальное бюджетное общеобразовательное учреждение \"Средняя общеобразовательная школа №6\" города Набережные Челны Республики Татарстан"]
[201,"Муниципальное автономное общеобразовательное учреждение \"Лицей инновационных технологий №36\" города Набережные Челны Республики Татарстан","ж",11,11,20,18.5,0,0,15,23,76.5,null,null,210,null,"нет","Салихова Алёна Владимировна","Муниципальное автономное общеобразовательное учреждение \"Лицей инновационных технологий №36\" города Набережные Челны Республики Татарстан"]
[202,"Муниципальное автономное общеобразовательное учреждение \"Средняя общеобразовтельная школа №35 с углубленным изучением отдельных предметов\" города Набережные Челны Республики Татарстан","ж",11,11,12,16,7,4,14,23,76,null,null,210,null,"нет","Гиматдинов Руслан Рафисович, Бахтина Гульнара Ильбаевна","Муниципальное автономное общеобразовательное учреждение \"Средняя общеобразовтельная школа №35 с углубленным изучением отдельных предметов\" города Набережные Челны Республики Татарстан"]
[203,"Муниципальное автономное общеобразовательное учреждение города Набережные Челны \"Средняя общеобразовательная школа №48\" Республики Татарстан","м",11,11,13,12,7,4.5,15,22,73.5,null,null,210,null,"нет","Марусева Ольга Владимировна","Муниципальное автономное общеобразовательное учреждение города Набережные Челны \"Средняя общеобразовательная школа №48\" Республики Татарстан"]
[204,"Муниципальное бюджетное общеобразовательное учреждение «Лицей-интернат №79» города Набережные Челны Республики Татарстан","м",11,11,13,16,4,4,11,24,72,null,null,210,null,"нет","Габдрахманова Гульнара Минияновна","Муниципальное бюджетное общеобразовательное учреждение «Лицей-интернат №79» города Набережные Челны Республики Татарстан"]
[205,"Муниципальное бюджетное общеобразовательное учреждение \"Средняя общеобразовательная школа №45 с углубленным изучением отдельных предметов\" города Набережные Челны Республики Татарстан","ж",11,11,13,17,1,5,4,31,71,null,null,210,null,"нет","Кульдюшева Раушания Габдулахатовна","Муниципальное бюджетное общеобразовательное учреждение \"Средняя общеобразовательная школа №45 с углубленным изучением отдельных предметов\" города Набережные Челны Республики Татарстан"]
[206,"Муниципальное бюджетное общеобразовательное учреждение \"Гимназия №29\" города Набережные Челны Республики Татарстан","ж",11,11,10,18.5,3,4,15,20,70.5,null,null,210,null,"нет","Рустамова Гульфия Камилевна","Муниципальное бюджетное общеобразовательное учреждение \"Гимназия №29\" города Набережные Челны Республики Татарстан"]
[207,"Муниципальное автономное общеобраховательное учреждение \"Средняя Общеобразовательная школа № 51\" города Набережные Челны Республики Татарстан","ж",11,11,11,16.5,6,1,11,24,69.5,null,null,210,null,"нет","Максимова Мария Петровна","Муниципальное автономное общеобраховательное учреждение \"Средняя Общеобразовательная школа № 51\" города Набережные Челны Республики Татарстан"]
[208,"Муниципальное бюджетное образовательное учреждение «Средняя общеобразовательная школа 28» города Набережные Челны Республики Татарстан","ж",11,11,12,14,3,4,12,24,69,null,null,210,null,"нет","Закирова Залия Рафаэловна","Муниципальное бюджетное образовательное учреждение «Средняя общеобразовательная школа 28» города Набережные Челны Республики Татарстан"]
[209,"Муниципальное автономное общеобраховательное учреждение \"Средняя Общеобразовательная школа № 51\" города Набережные Челны Республики Татарстан","ж",11,11,16,14.5,2,1,2,30,65.5,null,null,210,null,"нет","Максимова Мария Петровна","Муниципальное автономное общеобраховательное учреждение \"Средняя Общеобразовательная школа № 51\" города Набережные Челны Республики Татарстан"]
[210,"Муниципальное бюджетное общеобразовательное учреждение \"Средняя общеобразовательная школа №46 имени кавалера ордена Мужества Дмитрия Бадретдинова\" города Набережные Челны Республики Татарстан","ж",11,11,15,17,0,6,7,19,64,null,null,210,null,"нет","Семёнова Надежда Ивановна","Муниципальное бюджетное общеобразовательное учреждение \"Средняя общеобразовательная школа №46 имени кавалера ордена Мужества Дмитрия Бадретдинова\" города Набережные Челны Республики Татарстан"]
[211,"Муниципальное бюджетное общеобразовательное учреждение \"Средняя общеобразовательная школа №45 с углубленным изучением отдельных предметов\" города Набережные Челны Республики Татарстан","ж",11,11,13,15,6,0,7,23,64,null,null,210,null,"нет","Кульдюшева Раушания Габдулахатовна","Муниципальное бюджетное общеобразовательное учреждение \"Средняя общеобразовательная школа №45 с углубленным изучением отдельных предметов\" города Набережные Челны Республики Татарстан"]
[212,"Муниципальное бюджетное общеобразовательное учреждение \"Средняя общеобразовательная школа №20\" города Набережные Челны Республики Татарстан","ж",11,11,16,16,3,0,5,14.5,54.5,null,null,210,null,"нет","Фаттахова Динара Равилевна","Муниципальное бюджетное общеобразовательное учреждение \"Средняя общеобразовательная школа №20\" города Набережные Челны Республики Татарстан"]
[213,"Муниципальное бюджетное общеобразовательное учреждение «Средняя общеобразовательная школа №52» города Набережные Челны Республики Татарстан","ж",11,11,15,5,2,10,1,20,53,null,null,210,null,"нет","Юнусов Марат Марселевич","Муниципальное бюджетное общеобразовательное учреждение «Средняя общеобразовательная школа №52» города Набережные Челны Республики Татарстан"]
[214,"Муниципальное бюджетное общеобразовательное учреждение \"Средняя общеобразовательная школа №37 с углубленным изучением отдельных предметов\" города Набережные Челны Республики Татарстан","ж",11,11,19,17,0,3,0,11,50,null,null,210,null,"нет","Бердникова Светлана Владимировна","Муниципальное бюджетное общеобразовательное учреждение \"Средняя общеобразовательная школа №37 с углубленным изучением отдельных предметов\" города Набережные Челны Республики Татарстан"]
[215,"Муниципальное автономное образовательное учреждение города Набережные Челны «Средняя общеобразовательная школа №40 с углубленным изучением отдельных предметов»  Республики Татарстан","ж",11,11,13,18,0,0,12,7,50,null,null,210,null,"нет","Михеева Любовь Александровна","Муниципальное автономное образовательное учреждение города Набережные Челны «Средняя общеобразовательная школа №40 с углубленным изучением отдельных предметов»  Республики Татарстан"]
[216,"Муниципальное бюджетное общеобразовательное учреждение \"Гимназия №54\" города Набережные Челны Республики Татарстан","ж",11,11,10,1,0,1,7,28,47,null,null,210,null,"нет","Валиева Лина Дамировна","Муниципальное бюджетное общеобразовательное учреждение \"Гимназия №54\" города Набережные Челны Республики Татарстан"]
[217,"Муниципальное бюджетное общеобразовательное учреждение \"Средняя общеобразовательная школа №53\" города Набережные Челны Республики Татарстан","ж",11,11,14,3,4,4,2,19,46,null,null,210,null,"нет","Дурнева Ирина Геннадьевна","Муниципальное бюджетное общеобразовательное учреждение \"Средняя общеобразовательная школа №53\" города Набережные Челны Республики Татарстан"]
[218,"Муниципальное бюджетное общеобразовательное учреждение \"Средняя общеобразовательная школа № 41\" города Набережные Челны Республики Татарстан","ж",10,11,14,7,4,0,0,20,45,null,null,210,null,"нет","Савельева Наталья Николаевна","Муниципальное бюджетное общеобразовательное учреждение \"Средняя общеобразовательная школа № 41\" города Набережные Челны Республики Татарстан"]
[219,"Государственное бюджетное общеобразовательное учреждение \"Кадетская школа №82 имени Героя Советского Союза Ильдара Маннанова\" города Набережные Челны Республики Татарстан","ж",11,11,12,5,0,3.5,7,13,40.5,null,null,210,null,"нет","Хайдарова Резеда Рафиковна","Государственное бюджетное общеобразовательное учреждение \"Кадетская школа №82 имени Героя Советского Союза Ильдара Маннанова\" города Набережные Челны Республики Татарстан"]
[220,"Муниципальное бюджетное общеобразовательное учреждение \"Гимназия №54\" города Набережные Челны Республики Татарстан","ж",11,11,15,0,7,0,3,15,40,null,null,210,null,"нет","Валиева Лина Дамировна","Муниципальное бюджетное общеобразовательное учреждение \"Гимназия №54\" города Набережные Челны Республики Татарстан"]

{"sheet":"9кл.","index":1,"n_rows":0,"n_cols":0,"rows_kept":0,"hidden":true}

{"sheet":"10 кл.","index":2,"n_rows":0,"n_cols":0,"rows_kept":0,"hidden":true}

{"sheet":"11кл.","index":3,"n_rows":0,"n_cols":0,"rows_kept":0,"hidden":true}